bitfinex-derivatives/quotes_ETHF0:USTF0_20250209
["timestamp","ask_amount","ask_price","bid_price","bid_amount"]
[1739060358826,0.00569303,2632.0,2631.7,0.5777]
[1739060359024,4.26594406,2631.9,2631.6,3.2078]
[1739060359222,0.5606,2631.8,2631.6,3.2078]
[1739060359423,0.5687,2631.7,2631.6,3.2078]
[1739060359629,1.1766,2631.7,2631.6,3.2078]
[1739060365324,1.1766,2631.7,2631.3,2.71602156]
[1739060365520,1.1766,2631.7,2631.5,3.2078]
[1739060369332,1.1766,2631.7,2631.4,0.568]
[1739060369632,1.1766,2631.7,2631.5,3.2078]
[1739060370231,1.1766,2631.7,2631.3,2.71602156]
[1739060370432,1.1766,2631.7,2631.5,3.2078]
[1739060371035,1.1766,2631.7,2631.3,2.71602156]
[1739060374132,1.1766,2631.7,2631.2,1.1309]
[1739060376029,1.1766,2631.7,2631.1,0.00268502]
[1739060377336,3.2078,2631.2,2631.1,0.00268502]
[1739060377836,7.59301613,2631.2,2631.1,0.00268502]
[1739060378229,7.59301613,2631.2,2630.2,1.7229]
[1739060378230,10.11692613,2631.2,2630.2,1.7229]
[1739060378430,3.2078,2630.7,2630.2,1.7229]
[1739060378729,0.5838,2630.6,2630.2,1.7229]
[1739060379337,1.1945,2630.6,2630.2,1.7229]
[1739060380235,1.1945,2630.6,2630.1,2.71602156]
[1739060380432,0.5736,2630.5,2630.1,2.71602156]
[1739060381238,0.5736,2630.5,2630.0,0.5642]
[1739060382037,0.5736,2630.5,2629.8,5.92382156]
[1739060382238,3.2078,2630.4,2629.8,5.92382156]
[1739060384931,3.2078,2630.4,2629.8,3.2078]
[1739060387339,3.2078,2630.1,2629.7,0.5889]
[1739060387539,1.7867,2630.0,2629.7,0.5889]
[1739060390240,3.75418,2630.6,2629.5,2.71602156]
[1739060390241,3.2078,2630.4,2629.5,2.71602156]
[1739060390442,3.2078,2630.4,2629.6,0.5788]
[1739060390642,4.21462439,2630.3,2629.8,2.71602156]
[1739060390945,3.2078,2630.4,2629.8,2.71602156]
[1739060391139,3.2078,2630.4,2629.9,0.6045]
[1739060397049,3.2078,2630.3,2629.9,0.6045]
[1739060398349,3.2078,2630.3,2629.8,2.71602156]
[1739060400446,1.6897,2630.5,2630.1,2.71602156]
[1739060400647,1.6897,2630.5,2630.2,1.1508]
[1739060400944,0.5564,2630.5,2630.2,1.1508]
[1739060401143,0.5564,2630.5,2630.2,1.6884]
[1739060401954,0.5564,2630.5,2630.0,1.639]
[1739060402251,0.5906,2630.4,2630.0,1.639]
[1739060404447,0.5898,2630.3,2630.0,1.639]
[1739060404645,0.5898,2630.3,2630.1,2.71602156]
[1739060404849,0.5564,2630.5,2630.1,3.31302156]
[1739060405046,3.2078,2630.6,2630.2,0.5501]
[1739060405550,0.5898,2630.5,2630.2,0.5501]
[1739060405745,1.1448,2630.5,2630.2,0.5501]
[1739060406652,1.7501,2630.5,2630.2,0.5501]
[1739060408243,0.00569303,2630.7,2630.4,2.71602156]
[1739060408445,0.00569303,2630.7,2630.5,0.5624]
[1739060409841,0.00569303,2630.7,2630.6,3.2078]
[1739060410047,0.00569303,2630.7,2630.6,3.8088]
[1739060411356,3.2078,2631.5,2630.6,5.4468]
[1739060411650,0.5876,2631.0,2630.8,2.71602156]
[1739060411954,1.7396,2631.4,2630.8,2.71602156]
[1739060412352,1.74530396,2631.4,2630.8,2.72172552]
[1739060418249,1.74530396,2631.4,2630.8,5.92952552]
[1739060418555,1.74530396,2631.4,2630.8,2.72172552]
[1739060419353,1.74530396,2631.4,2630.8,0.00570396]
[1739060419655,4.34791458,2631.3,2630.8,0.00570396]
[1739060420752,4.34791458,2631.3,2630.2,1.6672]
[1739060420753,3.2078,2630.9,2630.1,3.2078]
[1739060421051,1.2021,2630.8,2630.1,3.2078]
[1739060421259,2.71602156,2630.7,2630.1,3.2078]
[1739060421649,3.2078,2630.5,2630.1,3.2078]
[1739060421851,3.2078,2630.5,2629.7,3.2078]
[1739060422158,4.38409958,2630.4,2629.7,3.2078]
[1739060422456,3.2078,2630.2,2629.7,3.2078]
[1739060422651,0.5942,2630.1,2629.7,3.2078]
[1739060423655,3.802,2630.1,2629.6,2.71602156]
[1739060423958,0.5777,2630.0,2629.6,2.71602156]
[1739060428755,3.2078,2629.8,2629.3,2.71602156]
[1739060429154,0.5767,2629.7,2629.3,2.71602156]
[1739060430458,0.5708,2629.6,2629.3,2.71602156]
[1739060430760,0.5926,2629.5,2629.3,2.71602156]
[1739060431562,0.5926,2629.5,2629.2,3.2078]
[1739060432467,4.04589794,2629.4,2628.8,3.2078]
[1739060436160,3.2078,2629.1,2628.6,2.51523151]
[1739060436362,1.7261,2629.0,2628.6,2.51523151]
[1739060441571,1.7261,2629.0,2628.5,0.5671]
[1739060441968,10.14596499,2628.9,2628.1,2.71602156]
[1739060442362,0.00570396,2628.8,2628.1,2.71602156]
[1739060442869,4.31733225,2628.7,2628.1,2.71602156]
[1739060444568,0.00570396,2628.8,2628.1,2.71602156]
[1739060446069,3.21350396,2628.8,2628.1,2.71602156]
[1739060450776,0.00570396,2628.8,2628.4,2.71602156]
[1739060450964,0.00570396,2628.8,2628.5,1.1594]
[1739060452773,0.00570396,2628.8,2628.6,3.2078]
[1739060453077,0.00570396,2628.8,2628.5,1.6977]
[1739060454877,0.00570396,2628.8,2628.3,3.2078]
[1739060455173,0.00570396,2628.8,2628.3,0.5674]
[1739060455870,3.21350396,2628.8,2628.3,0.5674]
[1739060456067,3.21350396,2628.8,2628.0,3.7938]
[1739060456274,3.21350396,2628.8,2628.0,4.3612]
[1739060456275,4.21436585,2628.7,2628.0,4.3612]
[1739060456676,0.5523,2628.6,2628.0,4.3612]
[1739060456876,1.1404,2628.5,2628.0,4.3612]
[1739060457675,1.1404,2628.5,2628.0,1.1534]
[1739060458780,1.1404,2628.5,2628.0,4.3612]
[1739060458980,1.1404,2628.5,2628.0,1.1534]
[1739060459182,0.5523,2628.6,2628.1,2.71602156]
[1739060459484,4.34860396,2628.8,2628.2,3.2078]
[1739060460179,3.78230396,2628.8,2628.3,0.5382]
[1739060460378,3.21350396,2628.8,2628.3,0.5382]
[1739060460684,0.00570396,2628.8,2628.3,0.5382]
[1739060461082,0.00570396,2628.8,2628.2,4.8508]
[1739060461282,4.37073394,2628.7,2628.2,1.643]
[1739060461489,3.2078,2628.5,2628.0,1.1534]
[1739060461679,1.7407,2628.6,2628.0,4.3612]
[1739060462176,1.7407,2628.6,2628.1,2.71602156]
[1739060463583,1.7407,2628.6,2628.2,3.2078]
[1739060465780,0.5688,2628.6,2628.2,3.2078]
[1739060465981,0.00570396,2628.8,2628.4,2.71602156]
[1739060466182,0.00570396,2628.8,2628.5,4.3752]
[1739060466390,0.00570396,2628.8,2628.7,2.71602156]
[1739060468585,0.00570396,2628.8,2628.7,8.71602156]
[1739060468788,5.92382156,2629.8,2628.7,9.47673156]
[1739060468789,1.1335,2629.7,2628.7,9.47673156]
[1739060468979,1.6905,2629.7,2629.1,3.2078]
[1739060469282,1.6905,2629.7,2629.2,0.5534]
[1739060469983,1.69620396,2629.7,2629.2,0.55910396]
[1739060470185,0.56270396,2629.7,2629.2,0.55910396]
[1739060471691,0.56270396,2629.7,2629.4,3.2078]
[1739060472082,0.56270396,2629.7,2629.3,3.32162156]
[1739060477087,0.00570396,2629.7,2629.6,2.71602156]
[1739060479292,1.1386,2630.6,2629.6,8.71602156]
[1739060479293,3.2078,2630.5,2629.6,8.71602156]
[1739060479491,3.2078,2630.5,2629.9,5.92382156]
[1739060480483,3.21350396,2630.5,2629.9,5.92382156]
[1739060482591,3.21350396,2630.5,2630.0,0.5584]
[1739060482795,3.21350396,2630.5,2630.0,3.7662]
[1739060483295,3.21350396,2630.5,2629.9,2.71602156]
[1739060484396,3.2078,2630.2,2629.6,2.71602156]
[1739060484694,1.7782,2630.1,2629.6,2.71602156]
[1739060486399,1.7782,2630.1,2629.6,5.92382156]
[1739060487800,1.7782,2630.1,2629.9,5.92382156]
[1739060487998,0.5822,2630.1,2629.9,5.92382156]
[1739060489499,1.1648,2630.4,2629.9,5.92382156]
[1739060489804,1.1648,2630.4,2630.0,0.5535]
[1739060493506,1.1648,2630.4,2630.0,3.7613]
[1739060496510,0.00570396,2630.5,2630.3,3.2078]
[1739060503713,0.00570396,2630.5,2630.2,5.92382156]
[1739060504204,0.00570396,2630.5,2630.2,2.71602156]
[1739060504408,0.00570396,2630.5,2630.2,5.92382156]
[1739060508012,0.00570396,2630.5,2630.2,6.46172156]
[1739060519429,0.00570396,2630.5,2630.2,5.92382156]
[1739060521524,0.00570396,2630.5,2630.3,0.5852]
[1739060522943,0.00570396,2630.5,2630.4,3.2078]
[1739060524019,0.00570396,2630.5,2630.2,2.71602156]
[1739060525124,0.00570396,2630.5,2630.1,3.2078]
[1739060525320,0.56470396,2630.5,2630.1,3.2078]
[1739060525518,1.1998,2630.4,2630.1,3.2078]
[1739060528123,1.1998,2630.4,2630.2,2.71602156]
[1739060528829,0.5971,2630.4,2630.2,2.71602156]
[1739060529030,0.00570396,2630.5,2630.2,4.36002156]
[1739060529223,0.00570396,2630.5,2630.4,3.2078]
[1739060532027,3.2078,2631.3,2630.4,3.2078]
[1739060532231,1.7229,2631.2,2630.8,5.92382156]
[1739060533128,1.1353,2631.2,2631.1,5.92382156]
[1739060533332,1.1353,2631.2,2631.1,2.71602156]
[1739060534535,1.1353,2631.2,2631.1,3.29632156]
[1739060535231,1.1353,2631.2,2631.1,6.50412156]
[1739060535734,0.00570396,2631.3,2631.1,6.50412156]
[1739060539327,0.00570396,2631.3,2631.1,3.29632156]
[1739060539532,0.00570396,2631.3,2631.2,3.2078]
[1739060542946,0.00570396,2631.3,2630.8,8.15822156]
[1739060544342,0.00570396,2631.3,2631.1,5.92382156]
[1739060545345,0.00570396,2631.3,2631.2,0.5719]
[1739060546358,0.00570396,2631.3,2631.1,5.92382156]
[1739060547353,0.00570396,2631.3,2631.1,7.56382156]
[1739060553756,0.00570396,2631.3,2631.1,5.92382156]
[1739060553960,0.00570396,2631.3,2631.1,7.56182156]
[1739060554351,0.00570396,2631.3,2631.1,4.35402156]
[1739060554561,0.00570396,2631.3,2631.1,7.56182156]
[1739060556355,0.00570396,2631.3,2631.1,4.35402156]
[1739060557760,0.00570396,2631.3,2631.1,7.56182156]
[1739060563466,0.00570396,2631.3,2631.1,7.87169814]
[1739060564567,0.00570396,2631.3,2631.2,0.5578]
[1739060565267,1.1543,2631.9,2631.2,4.03380156]
[1739060565459,1.1543,2631.9,2631.8,2.71602156]
[1739060567074,1.1543,2631.9,2631.5,2.71602156]
[1739060567372,0.593,2631.8,2631.5,2.71602156]
[1739060567661,0.593,2631.8,2631.4,3.2078]
[1739060567866,0.593,2631.8,2631.2,2.71602156]
[1739060568266,3.2078,2631.7,2631.2,2.71602156]
[1739060571367,0.593,2631.8,2631.5,2.71602156]
[1739060572470,0.593,2631.8,2631.2,2.71602156]
[1739060578176,3.8008,2631.8,2631.2,2.71602156]
[1739060579071,0.593,2631.8,2631.4,3.2078]
[1739060579282,0.593,2631.8,2631.5,2.71602156]
[1739060580179,0.593,2631.8,2631.5,5.92382156]
[1739060580770,0.593,2631.8,2631.5,2.71602156]
[1739060583875,3.8008,2631.8,2631.2,5.92382156]
[1739060585671,3.8008,2631.8,2630.9,7.56182156]
[1739060585877,3.2078,2631.5,2630.9,5.92382156]
[1739060586078,1.704,2631.4,2630.9,5.92382156]
[1739060594480,1.1429,2631.4,2630.9,5.92382156]
[1739060601486,1.1429,2631.4,2630.8,1.164]
[1739060601695,3.2078,2631.2,2630.7,0.00570396]
[1739060602977,3.2078,2631.2,2630.7,0.61510396]
[1739060606983,3.2078,2631.2,2630.7,0.00570396]
[1739060609394,0.5501,2631.3,2630.9,2.71602156]
[1739060610190,0.5501,2631.3,2630.9,3.31602156]
[1739060617779,3.7579,2631.3,2630.8,0.5564]
[1739060618090,3.7579,2631.3,2630.7,0.00570396]
[1739060621389,3.2078,2631.1,2630.7,0.00570396]
[1739060621596,0.5741,2631.0,2630.7,0.00570396]
[1739060621897,0.6039,2630.9,2630.7,0.00570396]
[1739060623499,3.2078,2630.8,2630.0,2.71602156]
[1739060623795,3.2078,2630.5,2630.0,2.71602156]
[1739060623991,1.1663,2630.4,2630.0,2.71602156]
[1739060626694,0.5697,2630.3,2630.0,2.71602156]
[1739060627998,0.5697,2630.3,2630.0,3.27062156]
[1739060630698,0.5697,2630.3,2630.0,3.82242156]
[1739060632898,0.5697,2630.3,2629.9,0.00570396]
[1739060634401,3.2078,2630.1,2629.9,0.00570396]
[1739060634600,1.1661,2630.0,2629.9,0.00570396]
[1739060635000,1.1661,2630.0,2629.4,0.5972]
[1739060635001,5.19082862,2630.0,2629.4,0.5972]
[1739060635201,3.2078,2629.8,2629.3,3.2078]
[1739060636100,3.2078,2629.8,2629.3,3.21350396]
[1739060639304,3.98575252,2629.7,2629.3,3.21350396]
[1739060639604,1.1986,2629.6,2629.3,3.21350396]
[1739060641802,1.1986,2629.6,2629.3,0.00570396]
[1739060642913,0.5958,2629.6,2629.3,0.00570396]
[1739060643102,3.7795,2629.8,2629.3,0.00570396]
[1739060643303,3.7795,2629.8,2629.3,0.54390396]
[1739060643699,3.7795,2629.8,2629.4,0.5673]
[1739060643906,3.7795,2629.8,2629.5,0.6087]
[1739060648012,3.2078,2629.8,2629.5,0.6087]
[1739060648214,1.2111,2630.0,2629.5,0.6087]
[1739060648622,1.7808,2630.0,2629.5,0.6087]
[1739060648915,1.7808,2630.0,2629.5,3.8165]
[1739060649419,1.7808,2630.0,2629.5,0.6087]
[1739060650914,1.1755,2630.0,2629.5,0.6087]
[1739060651216,0.00570396,2630.5,2629.7,5.92382156]
[1739060651217,0.6013,2630.3,2629.7,5.92382156]
[1739060651515,1.1575,2630.3,2629.8,0.538]
[1739060651822,1.1575,2630.3,2629.9,0.5703]
[1739060652120,3.21350396,2630.5,2630.0,2.71602156]
[1739060652419,3.76970396,2630.5,2630.0,2.71602156]
[1739060653613,3.21350396,2630.5,2630.0,2.71602156]
[1739060653814,3.21350396,2630.5,2630.3,2.71602156]
[1739060654012,3.21350396,2630.5,2630.4,0.5638]
[1739060654217,3.21350396,2630.5,2630.4,1.1234]
[1739060654922,0.00570396,2630.5,2630.4,1.1234]
[1739060655124,0.00570396,2630.5,2630.4,4.3312]
[1739060655313,4.9061,2631.1,2630.4,4.8692]
[1739060656418,0.00570396,2631.0,2630.4,4.8692]
[1739060657627,0.00570396,2631.0,2630.5,3.2078]
[1739060658125,0.00570396,2631.0,2630.4,1.6614]
[1739060658728,0.00570396,2631.0,2630.5,3.2078]
[1739060659224,0.00570396,2631.0,2630.4,1.1234]
[1739060659422,0.00570396,2631.0,2630.4,2.7614]
[1739060660313,3.2078,2630.9,2630.4,2.7614]
[1739060661821,3.2078,2630.9,2630.3,2.71602156]
[1739060665320,3.2078,2630.9,2630.2,3.7677]
[1739060665526,4.31274143,2630.8,2630.2,3.7677]
[1739060665725,4.31274143,2630.8,2630.2,3.2078]
[1739060665920,5.07285143,2630.8,2630.2,3.2078]
[1739060666121,4.31274143,2630.8,2630.2,3.2078]
[1739060667731,3.2078,2630.9,2630.2,3.2078]
[1739060667930,0.5939,2630.7,2630.2,3.2078]
[1739060668227,0.5876,2630.6,2630.2,3.2078]
[1739060668531,0.5876,2630.6,2630.3,0.5512]
[1739060668729,0.5876,2630.6,2630.4,0.5614]
[1739060671738,1.1527,2630.6,2630.4,0.5614]
[1739060672537,1.1527,2630.6,2630.2,3.2078]
[1739060675731,1.1527,2630.6,2630.0,2.71602156]
[1739060676140,1.1527,2630.6,2630.1,3.2078]
[1739060681545,1.1527,2630.6,2629.9,1.1949]
[1739060682047,1.1527,2630.6,2630.1,3.2078]
[1739060683944,2.71602156,2630.2,2629.5,3.2078]
[1739060684148,3.2078,2629.9,2629.4,1.1756]
[1739060684447,4.34510355,2629.8,2629.2,3.2078]
[1739060684648,3.2078,2629.6,2629.1,1.1756]
[1739060684953,1.1692,2629.5,2629.1,1.1756]
[1739060685150,1.1692,2629.5,2629.1,0.591]
[1739060685151,1.7555,2629.5,2629.1,0.591]
[1739060685351,1.7555,2629.5,2628.7,1.1253]
[1739060685651,4.40061753,2629.4,2628.8,0.591]
[1739060694354,7.60841753,2629.4,2628.8,0.591]
[1739060706567,7.60841753,2629.4,2628.9,0.5368]
[1739060706969,3.21350396,2629.7,2628.9,3.25282156]
[1739060707374,3.21350396,2629.7,2629.1,3.2078]
[1739060707767,3.21350396,2629.7,2629.2,0.5903]
[1739060707978,3.21350396,2629.7,2629.3,0.58180396]
[1739060708571,3.21350396,2629.7,2629.4,0.5368]
[1739060709780,0.00570396,2629.7,2629.4,0.5368]
[1739060713282,0.00570396,2629.7,2629.4,3.7446]
[1739060713876,0.00570396,2629.7,2629.5,0.48608391]
[1739060714179,0.00570396,2629.7,2629.4,3.7446]
[1739060714378,0.00570396,2629.7,2629.5,3.20206996]
[1739060714574,0.00570396,2629.7,2629.6,0.48604022]
[1739060714774,0.00570396,2629.7,2629.6,1.04094022]
[1739060715675,0.00570396,2629.7,2629.6,0.5549]
[1739060715876,0.00570396,2629.7,2629.6,1.04070671]
[1739060716277,0.00570396,2629.7,2629.6,0.5549]
[1739060724176,0.00570396,2629.7,2629.6,1.04030449]
[1739060724578,0.00570396,2629.7,2629.6,1.04025529]
[1739060727185,0.00570396,2629.7,2629.6,1.04016085]
[1739060730989,0.00570396,2629.7,2629.6,0.5549]
[1739060731286,0.00570396,2629.7,2629.6,1.04025303]
[1739060732792,0.00570396,2629.7,2629.6,1.04050428]
[1739060732988,0.00570396,2629.7,2629.6,1.04050454]
[1739060734888,0.00570396,2629.7,2629.6,1.0408422]
[1739060735291,0.00570396,2629.7,2629.6,7.0408422]
[1739060735495,0.5616,2630.4,2629.8,0.76039]
[1739060735697,0.5616,2630.4,2630.1,2.71602156]
[1739060735899,0.5616,2630.4,2630.2,0.4859422]
[1739060736188,0.5616,2630.4,2629.6,1.6423]
[1739060736189,3.7694,2630.4,2629.7,3.2078]
[1739060736394,3.7694,2630.4,2629.8,0.48631689]
[1739060736590,0.00570396,2630.3,2629.9,0.48631689]
[1739060736794,0.00570396,2630.3,2629.7,3.2078]
[1739060736989,0.00570396,2630.3,2629.8,0.48632901]
[1739060737190,0.00570396,2630.3,2629.9,0.48632901]
[1739060737389,0.00570396,2630.3,2629.7,3.2078]
[1739060739601,3.2078,2630.1,2629.7,3.2078]
[1739060739895,1.8228,2630.0,2629.7,3.2078]
[1739060742100,1.8228,2630.0,2629.4,3.7826]
[1739060743697,5.0306,2630.0,2629.4,3.7826]
[1739060744798,5.0306,2630.0,2629.5,2.71602156]
[1739060745196,1.8228,2630.0,2629.7,3.2078]
[1739060745395,1.8228,2630.0,2629.8,0.5772]
[1739060753206,1.8228,2630.0,2629.7,3.2078]
[1739060754715,1.8228,2630.0,2629.8,2.71602156]
[1739060758911,0.6039,2630.0,2629.8,2.71602156]
[1739060759312,0.00570396,2630.3,2629.8,2.71602156]
[1739060760610,0.00570396,2630.3,2630.0,3.2078]
[1739060761014,0.00570396,2630.3,2629.8,2.71602156]
[1739060762323,3.2078,2630.2,2629.7,3.2078]
[1739060762918,3.2078,2630.2,2629.4,3.2078]
[1739060765923,3.2078,2630.2,2629.5,2.71602156]
[1739060766616,3.2078,2630.2,2629.7,3.2078]
[1739060766823,0.00570396,2630.3,2629.7,3.2078]
[1739060766824,0.00570396,2630.3,2629.8,2.71602156]
[1739060769323,0.00570396,2630.3,2630.0,3.2078]
[1739060788630,7.43376992,2630.2,2629.6,1.2216738]
[1739060788830,7.43376992,2630.2,2629.8,1.2216738]
[1739060790428,0.00570396,2630.3,2630.0,1.2216738]
[1739060790634,0.00570396,2630.3,2629.7,2.72894832]
[1739060791837,0.00570396,2630.3,2629.8,3.2078]
[1739060793132,0.00570396,2630.3,2629.7,2.72894832]
[1739060794739,0.00570396,2630.3,2629.8,3.2078]
[1739060795734,0.00570396,2630.3,2629.7,2.72894832]
[1739060796132,0.00570396,2630.3,2629.8,3.2078]
[1739060796434,0.00570396,2630.3,2630.0,2.72894832]
[1739060797338,0.00570396,2630.3,2630.1,3.2078]
[1739060798134,0.00570396,2630.3,2630.2,0.5834]
[1739060798330,3.2078,2630.8,2630.2,1.1201]
[1739060798535,3.2078,2630.8,2630.4,2.72894832]
[1739060798830,1.7788,2631.1,2630.4,2.72894832]
[1739060799035,1.7788,2631.1,2630.5,0.5834]
[1739060799429,1.7788,2631.1,2630.7,2.72894832]
[1739060799632,1.78450396,2631.1,2630.8,0.5873]
[1739060799836,1.78450396,2631.1,2630.8,1.1707]
[1739060801939,0.00570396,2631.1,2630.9,0.48222646]
[1739060802235,0.00570396,2631.1,2630.8,1.1707]
[1739060802636,0.58060396,2631.1,2630.9,0.48201196]
[1739060802837,0.58060396,2631.1,2630.8,1.1707]
[1739060807838,0.6096,2631.0,2630.7,3.2078]
[1739060808144,1.2103,2631.0,2630.7,3.2078]
[1739060809350,1.2103,2631.0,2630.7,4.3328]
[1739060810741,1.2103,2631.0,2630.7,3.7609]
[1739060811344,1.2103,2631.0,2630.7,3.2078]
[1739060812952,1.2103,2631.0,2630.8,1.1821]
[1739060813342,0.6096,2631.0,2630.8,1.1821]
[1739060814049,1.2115,2631.0,2630.8,1.1821]
[1739060814850,0.58060396,2631.1,2630.8,1.1821]
[1739060815248,0.5951,2631.0,2630.8,1.1821]
[1739060816947,0.5951,2631.0,2630.7,6.47324832]
[1739060816948,1.1822,2631.0,2630.7,3.2078]
[1739060820453,3.2078,2630.9,2630.6,0.00570396]
[1739060820857,0.5855,2630.8,2630.6,0.00570396]
[1739060823750,4.7412597,2630.7,2629.8,2.72894832]
[1739060824051,3.2078,2630.4,2629.7,0.5671]
[1739060824257,3.2078,2630.1,2629.6,0.5648]
[1739060825052,3.2078,2630.1,2629.6,0.57050396]
[1739060827160,0.5751,2630.0,2629.6,0.57050396]
[1739060827347,0.5751,2630.0,2629.6,0.00570396]
[1739060829854,3.30404832,2630.0,2629.6,0.00570396]
[1739060830059,3.2078,2629.8,2629.6,0.00570396]
[1739060830360,1.1102,2629.7,2629.6,0.00570396]
[1739060832856,0.5751,2630.0,2629.6,0.00570396]
[1739060833060,0.5751,2630.0,2629.6,1.19620396]
[1739060838063,1.1468,2630.1,2629.6,1.19620396]
[1739060838859,3.2078,2630.3,2629.8,2.72894832]
[1739060839060,3.2078,2630.3,2629.9,0.537]
[1739060839463,3.2078,2630.3,2630.0,0.5695]
[1739060840967,3.2078,2630.3,2630.1,0.5787]
[1739060843067,0.5981,2630.5,2630.1,0.5787]
[1739060843068,3.8059,2630.5,2630.1,0.5787]
[1739060844567,0.5981,2630.5,2630.1,0.5787]
[1739060844767,3.8059,2630.5,2630.1,0.5787]
[1739060845771,0.5981,2630.5,2630.1,0.5787]
[1739060845966,3.8059,2630.5,2630.1,0.5787]
[1739060852672,3.2078,2630.5,2630.1,6.51544832]
[1739060853074,0.596,2630.8,2630.4,2.72894832]
[1739060853271,0.596,2630.8,2630.5,1.1251]
[1739060854872,1.1469,2631.0,2630.5,1.1251]
[1739060855078,1.1469,2631.0,2630.5,1.6618]
[1739060856978,1.1469,2631.0,2630.7,5.93674832]
[1739060857171,3.2078,2631.2,2630.7,5.93674832]
[1739060862283,0.596,2631.3,2631.0,2.72894832]
[1739060872786,0.5833,2631.4,2631.0,2.72894832]
[1739060873688,1.1863,2631.4,2631.0,2.72894832]
[1739060875291,0.5974,2631.3,2631.0,2.72894832]
[1739060878585,1.1863,2631.4,2631.0,2.72894832]
[1739060878792,1.1863,2631.4,2631.0,4.35274832]
[1739060879087,1.1863,2631.4,2631.3,2.72894832]
[1739060881893,1.1863,2631.4,2631.2,3.2078]
[1739060882096,0.5952,2631.3,2631.2,3.2078]
[1739060884191,0.5952,2631.3,2631.1,0.00570396]
[1739060887894,1.1863,2631.4,2631.2,3.2078]
[1739060888093,0.00570396,2631.6,2631.3,4.36394832]
[1739060888396,0.59330396,2631.6,2631.5,3.2078]
[1739060890700,0.00570396,2631.6,2631.5,3.2078]
[1739060893693,0.00570396,2631.6,2631.5,4.2952]
[1739060895102,1e-08,2631.9,2631.5,4.2952]
[1739060895396,0.5947,2632.0,2631.8,3.2078]
[1739060895894,0.5947,2632.0,2631.8,3.7928]
[1739060896795,0.00375174,2632.2,2631.8,4.8802]
[1739060896997,0.00375174,2632.2,2632.0,2.72894832]
[1739060896998,0.56055174,2632.2,2632.0,2.72894832]
[1739060897301,0.56055174,2632.2,2631.8,4.2952]
[1739060898602,0.599,2632.1,2631.8,4.2952]
[1739060898801,0.599,2632.1,2632.0,2.72894832]
[1739060903906,0.599,2632.1,2631.8,3.2078]
[1739060912007,0.599,2632.1,2631.7,2.72894832]
[1739060914612,0.599,2632.1,2631.6,3.2078]
[1739060915012,3.8068,2632.1,2631.6,3.2078]
[1739060915314,3.8068,2632.1,2631.3,0.5814]
[1739060915614,3.8068,2632.1,2631.2,6.0174]
[1739060915816,3.8068,2632.1,2631.2,1.1756]
[1739060916517,3.2078,2631.8,2631.2,3.2078]
[1739060916715,1.675,2631.7,2631.2,3.2078]
[1739060918215,1.675,2631.7,2631.1,2.73465228]
[1739060918422,3.2078,2631.5,2631.1,0.00570396]
[1739060918609,0.5647,2631.4,2631.1,0.00570396]
[1739060918815,1.1148,2631.3,2631.1,0.00570396]
[1739060926119,7.41845148,2631.2,2630.6,4.2952]
[1739060927421,7.41845148,2631.2,2630.6,4.30090396]
[1739060927623,7.41845148,2631.2,2630.6,1.09310396]
[1739060928825,1.1148,2631.3,2630.6,1.09310396]
[1739060929128,1.1148,2631.3,2630.7,1.1699]
[1739060929328,1.1148,2631.3,2630.8,0.6029]
[1739060933331,1.1148,2631.3,2630.8,3.33184832]
[1739060935229,0.5499,2631.3,2630.8,3.33184832]
[1739060935533,0.5647,2631.4,2630.9,3.2078]
[1739060937842,0.5647,2631.4,2630.8,4.96684832]
[1739060938041,3.7725,2631.4,2630.8,8.17464832]
[1739060938636,0.5647,2631.4,2630.8,8.17464832]
[1739060943539,3.7725,2631.4,2630.8,3.8107]
[1739060943848,1.1151,2631.3,2630.8,3.8107]
[1739060944042,1.1151,2631.3,2630.8,6.53964832]
[1739060948157,0.5608,2631.3,2630.8,6.53964832]
[1739060948452,0.5647,2631.4,2630.8,6.53964832]
[1739060954750,0.5647,2631.4,2631.1,1.2203644]
[1739060954950,0.5647,2631.4,2631.2,1.758]
[1739060958756,0.5647,2631.4,2631.3,1.2203644]
[1739060959154,4.3588,2631.6,2631.3,1.2203644]
[1739060959752,3.2078,2631.6,2631.5,1.2203644]
[1739060959951,3.2078,2631.9,2631.5,1.2203644]
[1739060960457,1.7401,2632.0,2631.5,1.2203644]
[1739060960660,1.7401,2632.0,2631.7,1.2203644]
[1739060962257,3.21155174,2632.2,2631.7,1.2203644]
[1739060962464,0.1,3830.0,2632.1,1.2203644]
[1739060962465,3.2078,2632.8,2632.1,1.2203644]
[1739060962760,1.1703,2633.2,2632.7,1.2203644]
[1739060962961,3.2078,2633.0,2632.7,1.2203644]
[1739060963654,3.2078,2633.0,2632.6,0.00570396]
[1739060963854,3.95980164,2632.9,2632.6,0.00570396]
[1739060967968,7.16760164,2632.9,2632.6,0.00570396]
[1739060968154,0.5885,2632.8,2632.6,0.00570396]
[1739060968762,0.5555,2632.7,2632.6,0.00570396]
[1739060976760,1.1612,2632.7,2632.6,0.00570396]
[1739060986874,4.369,2632.7,2632.6,0.00570396]
[1739060991672,4.369,2632.7,2632.6,1.22495646]
[1739060991875,3.2078,2632.7,2632.6,1.22495646]
[1739060992777,0.5885,2632.8,2632.6,1.22495646]
[1739060992978,0.5885,2632.8,2632.7,0.584]
[1739060993177,0.5885,2632.8,2632.7,1.1393]
[1739060993372,0.5885,2632.8,2632.7,1.7005]
[1739060994181,1.1546,2633.0,2632.7,1.7005]
[1739060994379,1.7481,2633.0,2632.8,1.2192525]
[1739060994977,0.5935,2633.0,2632.8,1.2192525]
[1739060995177,3.21350396,2633.1,2632.8,1.2192525]
[1739060995474,3.21350396,2633.1,2633.0,1.2192525]
[1739060996678,3.21350396,2633.1,2632.8,2.72288861]
[1739061003383,0.00570396,2633.1,2632.8,2.72288861]
[1739061006281,0.00570396,2633.1,2632.8,5.93068861]
[1739061015396,0.00570396,2633.1,2632.8,7.01808861]
[1739061018599,0.00570396,2633.1,2633.0,1.21816732]
[1739061020597,0.00570396,2633.1,2633.0,2.72228252]
[1739061034409,0.00570396,2633.1,2633.0,3.21161744]
[1739061036215,0.00570396,2633.1,2633.0,3.21169699]
[1739061038414,0.00570396,2633.1,2633.0,6.41949699]